[Event "Early-Titled-Tuesday-Blitz-September-05-2023"]
[Site "Chess.com"]
[Date "2023.09.05"]
[Round "3"]
[White "JaloliddinIlkhomi"]
[Black "venturov"]
[Result "0-1"]
[WhiteElo "2569"]
[BlackElo "2400"]
[TimeControl "180+1"]
[EndTime "8:26:34 PDT"]
[Termination "venturov won by resignation"]

1. Nf3 {[%clk 0:03:00.9]} 1... g6 {[%clk 0:02:59.2]} 2. d4 {[%clk 0:03:00.4]}
2... Bg7 {[%clk 0:02:59]} 3. c3 {[%clk 0:03:00.9]} 3... Nf6 {[%clk 0:02:56.3]}
4. Bg5 {[%clk 0:03:01.4]} 4... O-O {[%clk 0:02:56.1]} 5. Nbd2 {[%clk 0:03:01.9]}
5... d5 {[%clk 0:02:54.2]} 6. e3 {[%clk 0:03:01.1]} 6... c5 {[%clk 0:02:53.5]}
7. Bd3 {[%clk 0:03:01.5]} 7... cxd4 {[%clk 0:02:51.7]} 8. exd4 {[%clk
0:03:01.1]} 8... Nc6 {[%clk 0:02:51.3]} 9. O-O {[%clk 0:03:01.7]} 9... Bf5
{[%clk 0:02:49.3]} 10. Bxf5 {[%clk 0:03:01]} 10... gxf5 {[%clk 0:02:50.2]} 11.
Bxf6 {[%clk 0:02:55.3]} 11... Bxf6 {[%clk 0:02:49.8]} 12. Re1 {[%clk 0:02:55.9]}
12... e6 {[%clk 0:02:48.1]} 13. Ne5 {[%clk 0:02:55.8]} 13... Nxe5 {[%clk
0:02:42.2]} 14. dxe5 {[%clk 0:02:56.7]} 14... Be7 {[%clk 0:02:42.8]} 15. Nf3
{[%clk 0:02:56.3]} 15... Kh8 {[%clk 0:02:39.2]} 16. Nd4 {[%clk 0:02:52.1]} 16...
Rg8 {[%clk 0:02:34.4]} 17. Qh5 {[%clk 0:02:52.6]} 17... Rg6 {[%clk 0:02:33.5]}
18. f4 {[%clk 0:02:41.5]} 18... Bc5 {[%clk 0:02:27.1]} 19. Re3 {[%clk
0:02:33.6]} 19... Bxd4 {[%clk 0:02:26.7]} 20. cxd4 {[%clk 0:02:33.5]} 20... Qb6
{[%clk 0:02:27.3]} 21. Rd1 {[%clk 0:02:32.1]} 21... Rc8 {[%clk 0:02:21.6]} 22.
Rh3 {[%clk 0:02:20.5]} 22... h6 {[%clk 0:02:15.3]} 23. Rg3 {[%clk 0:02:19.8]}
23... Kh7 {[%clk 0:01:59.6]} 24. Qh4 {[%clk 0:02:18.1]} 24... Rcg8 {[%clk
0:01:30.4]} 25. Qe7 {[%clk 0:02:03.2]} 25... Rxg3 {[%clk 0:01:15.2]} 26. hxg3
{[%clk 0:02:01.7]} 26... Rg7 {[%clk 0:01:15]} 27. b3 {[%clk 0:01:52.7]} 27...
Qa6 {[%clk 0:01:05.1]} 28. Rd2 {[%clk 0:01:01.3]} 28... Qa5 {[%clk 0:00:57.6]}
29. Re2 {[%clk 0:00:51]} 29... Qc3 {[%clk 0:00:56.5]} 30. Qh4 {[%clk 0:00:49.4]}
30... Qxd4+ {[%clk 0:00:52.7]} 31. Kh2 {[%clk 0:00:49.7]} 31... Qd3 {[%clk
0:00:43.6]} 32. Re1 {[%clk 0:00:49.8]} 32... Rg4 {[%clk 0:00:42.5]} 33. Qh3
{[%clk 0:00:46.7]} 33... d4 {[%clk 0:00:36]} 34. Rf1 {[%clk 0:00:46.6]} 34...
Qxf1 {[%clk 0:00:34.9]} 35. Qh5 {[%clk 0:00:46.8]} 35... Rg7 {[%clk 0:00:31.6]}
36. g4 {[%clk 0:00:43.3]} 36... Qxf4+ {[%clk 0:00:31.5]} 0-1

[Event "Early-Titled-Tuesday-Blitz-September-05-2023"]
[Site "Chess.com"]
[Date "2023.09.05"]
[Round "3"]
[White "PetrolulSah"]
[Black "ChessWarrior3"]
[Result "0-1"]
[WhiteElo "2123"]
[BlackElo "2417"]
[TimeControl "180+1"]
[EndTime "8:26:38 PDT"]
[Termination "ChessWarrior3 won by checkmate"]

1. d4 {[%clk 0:03:00.9]} 1... d5 {[%clk 0:02:57.1]} 2. c4 {[%clk 0:03:00.8]}
2... dxc4 {[%clk 0:02:50.9]} 3. e4 {[%clk 0:03:00.4]} 3... e5 {[%clk 0:02:37.5]}
4. Nf3 {[%clk 0:02:58.7]} 4... exd4 {[%clk 0:02:37.1]} 5. Qxd4 {[%clk
0:02:59.4]} 5... Qxd4 {[%clk 0:02:31.9]} 6. Nxd4 {[%clk 0:03:00.3]} 6... Nf6
{[%clk 0:02:31.9]} 7. e5 {[%clk 0:02:54.3]} 7... Ng4 {[%clk 0:02:29.7]} 8. Bf4
{[%clk 0:02:50.4]} 8... Bc5 {[%clk 0:02:19.5]} 9. Nb5 {[%clk 0:02:47.7]} 9...
Bxf2+ {[%clk 0:02:12.7]} 10. Ke2 {[%clk 0:02:43.8]} 10... Bb6 {[%clk 0:02:13.1]}
11. h3 {[%clk 0:02:27.3]} 11... Nh6 {[%clk 0:02:02.4]} 12. Bxh6 {[%clk
0:02:26.9]} 12... gxh6 {[%clk 0:02:01.5]} 13. Nd2 {[%clk 0:02:26.9]} 13... Be6
{[%clk 0:01:54.7]} 14. Na3 {[%clk 0:02:20.3]} 14... Nc6 {[%clk 0:01:29.7]} 15.
Naxc4 {[%clk 0:02:16.7]} 15... Bd4 {[%clk 0:01:20.1]} 16. Kd3 {[%clk 0:02:07.3]}
16... Rd8 {[%clk 0:01:17.7]} 17. Kc2 {[%clk 0:01:54.9]} 17... Bf5+ {[%clk
0:01:13.3]} 18. Kb3 {[%clk 0:01:53.9]} 18... b5 {[%clk 0:01:10.6]} 19. Na3
{[%clk 0:01:47.1]} 19... a6 {[%clk 0:01:09.1]} 20. Rc1 {[%clk 0:01:38.6]} 20...
Na5+ {[%clk 0:01:02.2]} 21. Kb4 {[%clk 0:01:37.8]} 21... Bxb2 {[%clk 0:00:51.5]}
22. Rd1 {[%clk 0:01:09.5]} 22... Nc6+ {[%clk 0:00:14]} 23. Kc5 {[%clk
0:01:08.2]} 23... Bxa3+ {[%clk 0:00:13.9]} 24. Kxc6 {[%clk 0:01:08.2]} 24...
Be4+ {[%clk 0:00:12.5]} 25. Kxc7 {[%clk 0:01:02.8]} 25... Rd7+ {[%clk
0:00:12.7]} 26. Kb6 {[%clk 0:00:58.5]} 26... O-O {[%clk 0:00:12]} 27. Bxb5
{[%clk 0:00:54.3]} 27... Rb8+ {[%clk 0:00:10.4]} 28. Kxa6 {[%clk 0:00:50.2]}
28... Ra8+ {[%clk 0:00:08.1]} 29. Kb6 {[%clk 0:00:44.3]} 29... Rb7# {[%clk
0:00:08.5]} 0-1

[Event "Early-Titled-Tuesday-Blitz-September-05-2023"]
[Site "Chess.com"]
[Date "2023.09.05"]
[Round "3"]
[White "whiteglovethief"]
[Black "GOGIEFF"]
[Result "0-1"]
[WhiteElo "2514"]
[BlackElo "2997"]
[TimeControl "180+1"]
[EndTime "8:26:42 PDT"]
[Termination "GOGIEFF won by resignation"]

1. d4 {[%clk 0:03:00.9]} 1... Nf6 {[%clk 0:02:57.2]} 2. c4 {[%clk 0:03:00.7]}
2... e6 {[%clk 0:02:56.3]} 3. Nf3 {[%clk 0:03:01]} 3... d5 {[%clk 0:02:56.7]} 4.
g3 {[%clk 0:03:00.6]} 4... dxc4 {[%clk 0:02:56.2]} 5. Bg2 {[%clk 0:03:00.8]}
5... Bb4+ {[%clk 0:02:56.8]} 6. Bd2 {[%clk 0:02:59.2]} 6... a5 {[%clk
0:02:57.1]} 7. O-O {[%clk 0:02:58.1]} 7... b5 {[%clk 0:02:54.1]} 8. a4 {[%clk
0:02:55.3]} 8... c6 {[%clk 0:02:53.9]} 9. Na3 {[%clk 0:02:45.6]} 9... O-O {[%clk
0:02:36]} 10. axb5 {[%clk 0:02:44]} 10... Bxa3 {[%clk 0:02:36.3]} 11. bxa3
{[%clk 0:02:41]} 11... cxb5 {[%clk 0:02:36.3]} 12. Ne5 {[%clk 0:02:40.3]} 12...
Ra7 {[%clk 0:02:19.7]} 13. a4 {[%clk 0:02:40.4]} 13... Qxd4 {[%clk 0:02:05.4]}
14. Be3 {[%clk 0:02:37.7]} 14... Qxe5 {[%clk 0:02:04.9]} 15. Bxa7 {[%clk
0:02:38]} 15... b4 {[%clk 0:02:04.8]} 16. Be3 {[%clk 0:02:19.9]} 16... Qc7
{[%clk 0:01:49.5]} 17. Qd4 {[%clk 0:02:02.4]} 17... Nbd7 {[%clk 0:01:34]} 18.
Rfd1 {[%clk 0:01:41.1]} 18... c3 {[%clk 0:01:32]} 19. Rac1 {[%clk 0:01:40.8]}
19... Ba6 {[%clk 0:01:14.4]} 20. Kf1 {[%clk 0:01:32.7]} 20... h6 {[%clk
0:01:10.6]} 21. Bf3 {[%clk 0:01:21.2]} 21... Rc8 {[%clk 0:01:09.2]} 22. Qd6
{[%clk 0:01:20.8]} 22... Bc4 {[%clk 0:01:03.6]} 23. Bf4 {[%clk 0:01:00.4]} 23...
Qxd6 {[%clk 0:01:00.8]} 24. Rxd6 {[%clk 0:01:01]} 24... Nc5 {[%clk 0:01:00.4]}
25. Rc6 {[%clk 0:00:52.7]} 25... Rxc6 {[%clk 0:00:55.8]} 26. Bxc6 {[%clk
0:00:53.6]} 26... Nd5 {[%clk 0:00:56]} 27. Bd6 {[%clk 0:00:45.9]} 27... Ne4
{[%clk 0:00:55.6]} 28. Bxd5 {[%clk 0:00:43.1]} 28... exd5 {[%clk 0:00:55]} 29.
Bc7 {[%clk 0:00:42]} 29... b3 {[%clk 0:00:55]} 30. Be5 {[%clk 0:00:17]} 30... b2
{[%clk 0:00:53.3]} 31. Re1 {[%clk 0:00:13.2]} 31... Nd2+ {[%clk 0:00:49.3]} 32.
Kg1 {[%clk 0:00:12.6]} 32... b1=Q {[%clk 0:00:48.5]} 0-1

[Event "Early-Titled-Tuesday-Blitz-September-05-2023"]
[Site "Chess.com"]
[Date "2023.09.05"]
[Round "3"]
[White "AquivaRubinstein"]
[Black "Hamisandwich"]
[Result "0-1"]
[WhiteElo "2467"]
[BlackElo "2658"]
[TimeControl "180+1"]
[EndTime "8:26:44 PDT"]
[Termination "Hamisandwich won on time"]

1. d4 {[%clk 0:02:59.9]} 1... e6 {[%clk 0:02:58.5]} 2. c4 {[%clk 0:03:00]} 2...
b6 {[%clk 0:02:58.7]} 3. a3 {[%clk 0:02:58.5]} 3... Nf6 {[%clk 0:02:56.2]} 4.
Nc3 {[%clk 0:02:58.5]} 4... Bb7 {[%clk 0:02:56.7]} 5. Qc2 {[%clk 0:02:58.7]}
5... d5 {[%clk 0:02:54.8]} 6. cxd5 {[%clk 0:02:58.9]} 6... Nxd5 {[%clk
0:02:55.7]} 7. e4 {[%clk 0:02:59.2]} 7... Nxc3 {[%clk 0:02:55.6]} 8. bxc3 {[%clk
0:02:59.6]} 8... Be7 {[%clk 0:02:56.2]} 9. Bd3 {[%clk 0:02:59.9]} 9... c5 {[%clk
0:02:56.5]} 10. Nf3 {[%clk 0:02:59.8]} 10... cxd4 {[%clk 0:02:56.9]} 11. cxd4
{[%clk 0:02:59.7]} 11... O-O {[%clk 0:02:57.5]} 12. O-O {[%clk 0:02:59.7]} 12...
Nc6 {[%clk 0:02:53.2]} 13. Bb2 {[%clk 0:02:45.1]} 13... Rc8 {[%clk 0:02:52.7]}
14. Qe2 {[%clk 0:02:44.2]} 14... Bf6 {[%clk 0:02:47.3]} 15. e5 {[%clk 0:02:24]}
15... Be7 {[%clk 0:02:46.6]} 16. Be4 {[%clk 0:02:24.1]} 16... Na5 {[%clk
0:02:43.8]} 17. Bxb7 {[%clk 0:02:21.5]} 17... Nxb7 {[%clk 0:02:44.7]} 18. Qe4
{[%clk 0:02:16]} 18... Qd7 {[%clk 0:02:37.2]} 19. a4 {[%clk 0:02:10.4]} 19...
Na5 {[%clk 0:02:25.5]} 20. Ba3 {[%clk 0:02:08.1]} 20... Rfd8 {[%clk 0:02:15.1]}
21. Bxe7 {[%clk 0:02:02.3]} 21... Qxe7 {[%clk 0:02:16]} 22. h4 {[%clk
0:02:02.3]} 22... h6 {[%clk 0:02:12.7]} 23. Rac1 {[%clk 0:01:50.7]} 23... Qb4
{[%clk 0:02:02.3]} 24. Qe2 {[%clk 0:01:12.6]} 24... Qxa4 {[%clk 0:01:48.9]} 25.
Qa6 {[%clk 0:01:08.4]} 25... Qd7 {[%clk 0:01:48.8]} 26. h5 {[%clk 0:00:48.1]}
26... Qb7 {[%clk 0:01:46.2]} 27. Qe2 {[%clk 0:00:32.1]} 27... b5 {[%clk
0:01:40.3]} 28. Rb1 {[%clk 0:00:25.4]} 28... Nc4 {[%clk 0:01:37.4]} 29. g4
{[%clk 0:00:18.8]} 29... a5 {[%clk 0:01:28.2]} 30. g5 {[%clk 0:00:18.9]} 30...
hxg5 {[%clk 0:01:29.1]} 31. Nxg5 {[%clk 0:00:19]} 31... Rxd4 {[%clk 0:01:29.7]}
32. f3 {[%clk 0:00:12.1]} 32... Rh4 {[%clk 0:01:22.4]} 33. Kg2 {[%clk
0:00:06.6]} 33... Rg4+ {[%clk 0:01:18]} 34. Kh3 {[%clk 0:00:04.2]} 34... Rxg5
{[%clk 0:01:18.9]} 35. Rg1 {[%clk 0:00:04.7]} 35... Rxh5+ {[%clk 0:01:18.1]} 36.
Kg4 {[%clk 0:00:04.3]} 36... Rxe5 {[%clk 0:01:09.7]} 37. Qd3 {[%clk 0:00:04.7]}
37... Qd5 {[%clk 0:01:07.7]} 38. Qc2 {[%clk 0:00:04.1]} 38... Ne3+ {[%clk
0:01:07.6]} 0-1

[Event "Early-Titled-Tuesday-Blitz-September-05-2023"]
[Site "Chess.com"]
[Date "2023.09.05"]
[Round "3"]
[White "Jospem"]
[Black "TanitoluwaAps116"]
[Result "1-0"]
[WhiteElo "3053"]
[BlackElo "2793"]
[TimeControl "180+1"]
[EndTime "8:26:47 PDT"]
[Termination "Jospem won on time"]

1. e4 {[%clk 0:03:00.9]} 1... c5 {[%clk 0:02:48.9]} 2. Nf3 {[%clk 0:02:59.9]}
2... Nc6 {[%clk 0:02:48.5]} 3. c3 {[%clk 0:03:00.6]} 3... Nf6 {[%clk 0:02:44.3]}
4. Bd3 {[%clk 0:03:00.6]} 4... d5 {[%clk 0:02:41]} 5. e5 {[%clk 0:03:00.2]} 5...
Nd7 {[%clk 0:02:38.3]} 6. Bb5 {[%clk 0:02:59.9]} 6... e6 {[%clk 0:02:33.3]} 7.
Qe2 {[%clk 0:02:58.4]} 7... g5 {[%clk 0:02:27.1]} 8. h3 {[%clk 0:02:56.9]} 8...
h5 {[%clk 0:02:22.3]} 9. d3 {[%clk 0:02:42.7]} 9... Rg8 {[%clk 0:02:11.2]} 10.
g4 {[%clk 0:02:30.7]} 10... h4 {[%clk 0:01:53.2]} 11. O-O {[%clk 0:02:29.3]}
11... Qc7 {[%clk 0:01:36.7]} 12. Re1 {[%clk 0:02:24.4]} 12... Bg7 {[%clk
0:01:30]} 13. d4 {[%clk 0:02:16.3]} 13... cxd4 {[%clk 0:01:21.1]} 14. cxd4
{[%clk 0:02:17.2]} 14... Bh6 {[%clk 0:01:10.1]} 15. Nc3 {[%clk 0:02:11]} 15...
a6 {[%clk 0:01:05.7]} 16. Bd3 {[%clk 0:02:10.9]} 16... b5 {[%clk 0:01:02]} 17.
Be3 {[%clk 0:02:11]} 17... Bb7 {[%clk 0:01:01.8]} 18. Rac1 {[%clk 0:02:09.9]}
18... Qb6 {[%clk 0:00:59]} 19. Qd2 {[%clk 0:02:04.5]} 19... Rc8 {[%clk
0:00:49.4]} 20. Ne2 {[%clk 0:02:03.2]} 20... Qd8 {[%clk 0:00:45.4]} 21. Rc2
{[%clk 0:01:58.7]} 21... f6 {[%clk 0:00:41.3]} 22. exf6 {[%clk 0:01:37.9]} 22...
Qxf6 {[%clk 0:00:42.2]} 23. Kg2 {[%clk 0:01:38.4]} 23... Kd8 {[%clk 0:00:23.5]}
24. Neg1 {[%clk 0:01:34.9]} 24... e5 {[%clk 0:00:20.6]} 25. Bf5 {[%clk
0:01:34.5]} 25... e4 {[%clk 0:00:16.6]} 26. Nh2 {[%clk 0:01:33.6]} 26... Rc7
{[%clk 0:00:10.9]} 27. Rec1 {[%clk 0:01:27.5]} 27... Kc8 {[%clk 0:00:06.5]} 28.
Ne2 {[%clk 0:01:27.9]} 28... Kb8 {[%clk 0:00:06.2]} 29. a4 {[%clk 0:01:28.6]}
29... bxa4 {[%clk 0:00:05.5]} 30. Nc3 {[%clk 0:01:28.8]} 30... Qd6 {[%clk
0:00:02.8]} 31. Nxa4 {[%clk 0:01:24.8]} 31... Rgc8 {[%clk 0:00:03.1]} 32. Nf1
{[%clk 0:01:20.8]} 32... Bg7 {[%clk 0:00:02.9]} 33. Kg1 {[%clk 0:01:11.6]} 33...
Ne7 {[%clk 0:00:02.6]} 34. Bxd7 {[%clk 0:01:11]} 34... Rxc2 {[%clk 0:00:02.6]}
35. Rxc2 {[%clk 0:01:10.6]} 35... Rxc2 {[%clk 0:00:03.2]} 36. Qxc2 {[%clk
0:01:11]} 36... Qxd7 {[%clk 0:00:03.8]} 37. Nc5 {[%clk 0:01:10.9]} 37... Qc7
{[%clk 0:00:02.3]} 38. b4 {[%clk 0:01:04.8]} 38... Nc6 {[%clk 0:00:01.4]} 39.
Qd2 {[%clk 0:01:04.6]} 39... Qb6 {[%clk 0:00:01.5]} 40. Ne6 {[%clk 0:01:04.7]}
1-0

[Event "Early-Titled-Tuesday-Blitz-September-05-2023"]
[Site "Chess.com"]
[Date "2023.09.05"]
[Round "3"]
[White "jcmesafischer"]
[Black "Virgo15"]
[Result "0-1"]
[WhiteElo "2480"]
[BlackElo "2693"]
[TimeControl "180+1"]
[EndTime "8:26:47 PDT"]
[Termination "Virgo15 won by resignation"]

1. Nf3 {[%clk 0:03:00.9]} 1... Nf6 {[%clk 0:02:59.9]} 2. g3 {[%clk 0:02:59.6]}
2... g6 {[%clk 0:03:00.8]} 3. Bg2 {[%clk 0:02:59.4]} 3... Bg7 {[%clk 0:03:01.7]}
4. O-O {[%clk 0:02:59.5]} 4... O-O {[%clk 0:03:02.6]} 5. c4 {[%clk 0:02:59.5]}
5... d6 {[%clk 0:03:03]} 6. Nc3 {[%clk 0:02:59]} 6... e5 {[%clk 0:03:02.7]} 7.
d3 {[%clk 0:02:59]} 7... Nc6 {[%clk 0:03:02.2]} 8. Rb1 {[%clk 0:02:58.8]} 8...
a5 {[%clk 0:03:01.4]} 9. a3 {[%clk 0:02:58.8]} 9... Bg4 {[%clk 0:02:55.9]} 10.
Ne1 {[%clk 0:02:57]} 10... Qd7 {[%clk 0:02:55.4]} 11. b4 {[%clk 0:02:55]} 11...
axb4 {[%clk 0:02:54.9]} 12. axb4 {[%clk 0:02:54.7]} 12... Bh3 {[%clk 0:02:55.5]}
13. Nc2 {[%clk 0:02:48.5]} 13... Bxg2 {[%clk 0:02:52.7]} 14. Kxg2 {[%clk
0:02:48.4]} 14... Nd4 {[%clk 0:02:51.3]} 15. e4 {[%clk 0:02:44.5]} 15... Nh5
{[%clk 0:02:47.1]} 16. Nxd4 {[%clk 0:02:39.5]} 16... exd4 {[%clk 0:02:47.4]} 17.
Nd5 {[%clk 0:02:39.4]} 17... Kh8 {[%clk 0:02:39.4]} 18. f4 {[%clk 0:02:33.4]}
18... c6 {[%clk 0:02:37.3]} 19. Nb6 {[%clk 0:02:32.4]} 19... Ra2+ {[%clk
0:02:37.8]} 20. Rb2 {[%clk 0:02:25.4]} 20... Rxb2+ {[%clk 0:02:37.7]} 21. Bxb2
{[%clk 0:02:26.3]} 21... Qc7 {[%clk 0:02:37.2]} 22. c5 {[%clk 0:02:26.4]} 22...
dxc5 {[%clk 0:02:35.4]} 23. bxc5 {[%clk 0:02:27.3]} 23... Qe7 {[%clk 0:02:35.1]}
24. Qb3 {[%clk 0:02:15.3]} 24... Rd8 {[%clk 0:02:34.6]} 25. Na4 {[%clk
0:02:05.8]} 25... Nf6 {[%clk 0:02:34.2]} 26. Rb1 {[%clk 0:02:01.4]} 26... Ng4
{[%clk 0:02:33.8]} 27. Bc1 {[%clk 0:01:58.8]} 27... h5 {[%clk 0:02:30]} 28. Qxb7
{[%clk 0:01:55.9]} 28... Qe6 {[%clk 0:02:24.1]} 29. Qb3 {[%clk 0:01:49.3]} 29...
Qe7 {[%clk 0:02:17]} 30. Qc2 {[%clk 0:01:29.7]} 30... h4 {[%clk 0:02:13.8]} 31.
Rb6 {[%clk 0:01:24.2]} 31... Qe6 {[%clk 0:02:05.2]} 32. Qb3 {[%clk 0:00:52.6]}
32... Qf6 {[%clk 0:01:50.8]} 33. Rb7 {[%clk 0:00:45.5]} 33... Kg8 {[%clk
0:01:48.8]} 34. Nb6 {[%clk 0:00:39]} 34... Ne3+ {[%clk 0:01:46.6]} 35. Bxe3
{[%clk 0:00:36.4]} 35... dxe3 {[%clk 0:01:47.5]} 36. e5 {[%clk 0:00:36]} 36...
Qf5 {[%clk 0:01:46.1]} 37. d4 {[%clk 0:00:24.6]} 37... Rxd4 {[%clk 0:01:36.9]}
38. Qxe3 {[%clk 0:00:18.6]} 38... h3+ {[%clk 0:01:34.7]} 39. Kf2 {[%clk
0:00:17.5]} 39... Qc2+ {[%clk 0:01:29.6]} 40. Kf3 {[%clk 0:00:10.2]} 40... Rd3
{[%clk 0:01:29.2]} 41. Nd7 {[%clk 0:00:10.2]} 41... Qg2+ {[%clk 0:01:25]} 42.
Kg4 {[%clk 0:00:08.8]} 42... Rxe3 {[%clk 0:01:25.4]} 43. Rc7 {[%clk 0:00:06.6]}
43... Qe2+ {[%clk 0:01:22.7]} 0-1

[Event "Early-Titled-Tuesday-Blitz-September-05-2023"]
[Site "Chess.com"]
[Date "2023.09.05"]
[Round "3"]
[White "Zurability"]
[Black "Fandorine"]
[Result "0-1"]
[WhiteElo "2727"]
[BlackElo "2938"]
[TimeControl "180+1"]
[EndTime "8:26:54 PDT"]
[Termination "Fandorine won on time"]

1. Nf3 {[%clk 0:03:00.9]} 1... Nf6 {[%clk 0:02:59.8]} 2. g3 {[%clk 0:03:00.3]}
2... d5 {[%clk 0:02:58.4]} 3. d4 {[%clk 0:02:58.6]} 3... g6 {[%clk 0:02:58.2]}
4. Bg2 {[%clk 0:02:59.2]} 4... Bg7 {[%clk 0:02:57.3]} 5. O-O {[%clk 0:02:59.9]}
5... O-O {[%clk 0:02:57.8]} 6. c4 {[%clk 0:03:00.4]} 6... c5 {[%clk 0:02:57]} 7.
cxd5 {[%clk 0:02:51.3]} 7... cxd4 {[%clk 0:02:56.8]} 8. Nxd4 {[%clk 0:02:46.4]}
8... Nxd5 {[%clk 0:02:56.9]} 9. Nb5 {[%clk 0:02:22.8]} 9... a6 {[%clk
0:02:55.7]} 10. Bxd5 {[%clk 0:02:14.5]} 10... axb5 {[%clk 0:02:54.9]} 11. Qb3
{[%clk 0:02:15.2]} 11... Nc6 {[%clk 0:02:50]} 12. Be3 {[%clk 0:01:54.2]} 12...
b4 {[%clk 0:02:18.1]} 13. Rd1 {[%clk 0:01:42.7]} 13... Qa5 {[%clk 0:02:05.3]}
14. Nd2 {[%clk 0:01:40.5]} 14... Bh3 {[%clk 0:01:51.8]} 15. Nc4 {[%clk
0:01:36.6]} 15... Qa4 {[%clk 0:01:51.2]} 16. Nb6 {[%clk 0:01:20.6]} 16... Qxb3
{[%clk 0:01:48.7]} 17. Bxb3 {[%clk 0:01:21.5]} 17... Rad8 {[%clk 0:01:46.4]} 18.
f3 {[%clk 0:00:40.5]} 18... h5 {[%clk 0:01:28.1]} 19. Nd5 {[%clk 0:00:25.2]}
19... Bxb2 {[%clk 0:01:21.7]} 20. Rab1 {[%clk 0:00:25.5]} 20... Bg7 {[%clk
0:01:22.3]} 21. Bb6 {[%clk 0:00:24.8]} 21... Rd7 {[%clk 0:01:19.1]} 22. g4
{[%clk 0:00:21.4]} 22... hxg4 {[%clk 0:00:58.7]} 23. Nf6+ {[%clk 0:00:17.2]}
23... Bxf6 {[%clk 0:00:59.2]} 24. Rxd7 {[%clk 0:00:17.8]} 24... gxf3 {[%clk
0:01:00.1]} 25. Rxb7 {[%clk 0:00:14.9]} 25... fxe2 {[%clk 0:00:58]} 26. Bc4
{[%clk 0:00:07]} 26... Bg4 {[%clk 0:00:44.2]} 27. h3 {[%clk 0:00:06.6]} 27...
Bh5 {[%clk 0:00:44.2]} 28. Bf2 {[%clk 0:00:03]} 28... Nd4 {[%clk 0:00:34]} 29.
Kg2 {[%clk 0:00:01.1]} 29... Bf3+ {[%clk 0:00:33.7]} 0-1

[Event "Early-Titled-Tuesday-Blitz-September-05-2023"]
[Site "Chess.com"]
[Date "2023.09.05"]
[Round "3"]
[White "Gyulamiryan-koryun"]
[Black "sebastianmarinp"]
[Result "0-1"]
[WhiteElo "2064"]
[BlackElo "2404"]
[TimeControl "180+1"]
[EndTime "8:26:57 PDT"]
[Termination "sebastianmarinp won on time"]

1. e4 {[%clk 0:02:59.3]} 1... e6 {[%clk 0:02:59.8]} 2. d4 {[%clk 0:02:57.5]}
2... d5 {[%clk 0:03:00.1]} 3. e5 {[%clk 0:02:58.1]} 3... c5 {[%clk 0:02:59.7]}
4. c3 {[%clk 0:02:58.6]} 4... Qb6 {[%clk 0:03:00]} 5. Nf3 {[%clk 0:02:58.5]}
5... Nc6 {[%clk 0:03:00.1]} 6. Bd3 {[%clk 0:02:58.3]} 6... cxd4 {[%clk 0:02:57]}
7. cxd4 {[%clk 0:02:58]} 7... Bd7 {[%clk 0:02:57.2]} 8. Bc2 {[%clk 0:02:55.9]}
8... Nb4 {[%clk 0:02:55.5]} 9. Nc3 {[%clk 0:02:56.5]} 9... Ne7 {[%clk
0:02:45.4]} 10. a3 {[%clk 0:02:48.1]} 10... Nxc2+ {[%clk 0:02:44.8]} 11. Qxc2
{[%clk 0:02:49]} 11... Nf5 {[%clk 0:02:44.6]} 12. Qd3 {[%clk 0:02:48.3]} 12...
a6 {[%clk 0:02:34.3]} 13. O-O {[%clk 0:02:42.3]} 13... Bb5 {[%clk 0:02:32.2]}
14. Nxb5 {[%clk 0:02:41.9]} 14... Qxb5 {[%clk 0:02:28.8]} 15. Qxb5+ {[%clk
0:02:31]} 15... axb5 {[%clk 0:02:29.7]} 16. Bd2 {[%clk 0:02:15]} 16... Be7
{[%clk 0:02:22.2]} 17. g4 {[%clk 0:02:06.8]} 17... Nh4 {[%clk 0:02:18.3]} 18.
Ne1 {[%clk 0:01:45.6]} 18... h5 {[%clk 0:02:02.8]} 19. g5 {[%clk 0:01:37.3]}
19... Kd7 {[%clk 0:01:58.8]} 20. f4 {[%clk 0:01:36.7]} 20... Rhc8 {[%clk
0:01:54.1]} 21. Bc3 {[%clk 0:01:28.5]} 21... b4 {[%clk 0:01:50.9]} 22. Bd2
{[%clk 0:01:09.7]} 22... bxa3 {[%clk 0:01:50.7]} 23. bxa3 {[%clk 0:01:08.9]}
23... Rxa3 {[%clk 0:01:49]} 24. Rxa3 {[%clk 0:01:07.9]} 24... Bxa3 {[%clk
0:01:49.9]} 25. Nf3 {[%clk 0:00:52.3]} 25... Nxf3+ {[%clk 0:01:40]} 26. Rxf3
{[%clk 0:00:53.2]} 26... Bb2 {[%clk 0:01:35.3]} 27. Rd3 {[%clk 0:00:41.2]} 27...
Rc4 {[%clk 0:01:29]} 28. Be3 {[%clk 0:00:39.8]} 28... Rc3 {[%clk 0:01:23.2]} 29.
Rxc3 {[%clk 0:00:18.4]} 29... Bxc3 {[%clk 0:01:23.9]} 30. Kf2 {[%clk 0:00:18.2]}
30... Kc6 {[%clk 0:01:19.1]} 31. Ke2 {[%clk 0:00:18.7]} 31... Kb5 {[%clk
0:01:18.2]} 32. Kd3 {[%clk 0:00:17.1]} 32... Kb4 {[%clk 0:01:17]} 33. Bc1 {[%clk
0:00:09.8]} 33... g6 {[%clk 0:01:09.3]} 34. Be3 {[%clk 0:00:08.6]} 34... Kb3
{[%clk 0:01:08.9]} 35. Bf2 {[%clk 0:00:06]} 35... Bb2 {[%clk 0:01:04.8]} 36. Be1
{[%clk 0:00:03.7]} 36... Bc1 {[%clk 0:01:03.9]} 0-1